Cogmind - Beta 9.2 @@@ ROGUE MODE // 2019.11.21 @ 02:49:19 Player: Suslik Result: Self-destructed Performance ------------- Evolutions (3) 1500 Regions Visited (12) 2400 Robots Destroyed (202) 1010 Value Destroyed (6716) 6716 Prototype IDs (12) 240 Alien Tech Used (0) 0 Bonus (2482) 2482 TOTAL SCORE: 14348 Bonus ------- High Alert Combat Kills 915 Follower Combat Kills 167 Entered Garrisons 400 Used RIF Installer 1000 Cogmind --------- Core Integrity 610/700 Matter 214/300 Energy 150/150 System Corruption 3% Temperature Cool (0) Movement Treading (220) Ox3 Location -7/Waste Parts ------- > --- POWER (1) -------- Light Angular Momentum Engine > --- PROPULSION (2) --- Light Treads > --- UTILITY (8) ------ Large Storage Unit Large Storage Unit Large Storage Unit Hardened Medium Armor Plating Relay Coupler [NC] (14) > --- WEAPON (2) ------- Remote Datajack Axe > --- INVENTORY (22) --- Light Nuclear Core Light Treads Light Treads Light Treads Armored Wheel Armored Wheel Disposable Heat Sink Large Battery (300) High-capacity Matter Pod (200) Experimental Sensor Array Experimental Sensor Array Light Armor Plating Insulated Plating Insulated Plating Insulated Plating Relay Coupler [Swarmer] (41) Long-range Tractor Beam Rocket Launcher Rocket Launcher Plasma Flamer Scythe EMP Trap Peak State ------------ > --- POWER ------------ Light Angular Momentum Engine > --- PROPULSION ------- Light Treads Armored Treads > --- UTILITY ---------- Large Storage Unit Large Storage Unit Large Storage Unit Large Storage Unit High-capacity Storage Unit Light Armor Plating Hardened Medium Armor Plating Insulated Plating > --- WEAPON ----------- Cooled Particle Cannon Axe > --- INVENTORY -------- Light Nuclear Core Light Treads Light Treads Light Treads Armored Wheel Armored Wheel Disposable Heat Sink Large Storage Unit Large Battery High-capacity Matter Pod Experimental Sensor Array Experimental Sensor Array Light Armor Plating Hardened Medium Armor Plating Hardened Medium Armor Plating Insulated Plating Insulated Plating Relay Coupler [NC] Relay Coupler [NC] Relay Coupler [NC] Relay Coupler [NC] Relay Coupler [Swarmer] Relay Coupler [Sentry] Long-range Tractor Beam Shock Rifle Light EM Pulse Cannon Improved Light Cannon Rocket Launcher Rocket Launcher Improved Datajack Remote Datajack Plasma Flamer Scythe EMP Trap [Rating: 37] Favorites ----------- Power Cooled Ion Engine Engine Cooled Ion Engine Propulsion Light Treads Treads Light Treads Leg Aluminum Leg Wheel Compact Wheel Utility Large Storage Unit Device Disposable Heat Sink Storage Large Storage Unit Hackware Relay Coupler [Grunt] Protection Light Armor Plating Weapon Improved Assault Rifle Energy Gun Heavy EM Shotgun Energy Cannon Light EM Pulse Cannon Ballistic Gun Improved Assault Rifle Ballistic Cannon Light Cannon Launcher Rocket Launcher Special Weapon Remote Datajack Impact Weapon Mace Slashing Weapon Axe Special Melee Weapon Improved Datajack Build | -11 -10 -10 -9 -9 -9 -8 -8 -8 -8 -8 -7 -7 ------- Run | Scr Mat Min Mat Min Exi Min Mat Gar Mat Gar Fac Was Slots Evolved 6 | . . . 2 . . . 2 . . . 2 . Power . | . . . . . . . . . . . . . Propulsion . | . . . . . . . . . . . . . Utility 6 | . . . 2 . . . 2 . . . 2 . Weapon . | . . . . . . . . . . . . . Parts Attached 186 | . 7 12 43 10 . 4 51 23 1 8 25 2 Power 9 | . . 2 2 . . . 2 1 . . 2 . Engine 9 | . . 2 2 . . . 2 1 . . 2 . Core . | . . . . . . . . . . . . . Reactor . | . . . . . . . . . . . . . Propulsion 35 | . 3 1 14 . . 1 5 6 . 1 4 . Treads 31 | . 3 1 12 . . 1 4 6 . . 4 . Leg . | . . . . . . . . . . . . . Wheel 4 | . . . 2 . . . 1 . . 1 . . Hover . | . . . . . . . . . . . . . Flight . | . . . . . . . . . . . . . Utility 50 | . 1 . 11 2 . 1 15 6 1 3 9 1 Device 2 | . . . . . . . 2 . . . . . Storage 11 | . 1 . 2 1 . . 4 . . . 3 . Processor . | . . . . . . . . . . . . . Hackware 3 | . . . . . . . . . . 2 . 1 Protection 34 | . . . 9 1 . 1 9 6 1 1 6 . Artifact . | . . . . . . . . . . . . . Weapon 92 | . 3 9 16 8 . 2 29 10 . 4 10 1 Energy Gun 8 | . . . 4 . . . 3 . . 1 . . Energy Cannon 12 | . . . . . . . 9 . . . 3 . Ballistic Gun 15 | . . 1 2 4 . 1 4 3 . . . . Ballistic Cannon 12 | . 2 4 4 . . . 1 1 . . . . Launcher 26 | . 1 4 5 4 . 1 8 2 . 1 . . Special Weapon 2 | . . . . . . . . . . . 1 1 Impact Weapon 1 | . . . 1 . . . . . . . . . Slashing Weapon 13 | . . . . . . . 4 4 . . 5 . Piercing Weapon . | . . . . . . . . . . . . . Special Melee Weapon 3 | . . . . . . . . . . 2 1 . Unidentified Prototypes 7 | . . . 3 . . . 3 . . . 1 . Parts Lost 39 | . . 1 3 1 . 3 13 10 . . 6 2 Power 5 | . . . . . . . 2 1 . . 2 . Propulsion 10 | . . 1 1 . . 1 2 4 . . 1 . Utility 18 | . . . 2 1 . 2 5 4 . . 2 2 Weapon 6 | . . . . . . . 4 1 . . 1 . Highest Loss Streak 6 | . . 1 2 1 . 1 6 6 . . 3 2 Average Slot Usage (%) 96 | . 97 99 97 100 100 97 88 98 100 100 99 100 Engine 10 | . 14 14 10 11 11 11 9 9 9 9 6 7 Treads 20 | . 28 27 19 22 22 22 17 17 18 13 14 15 Storage 30 | . 27 28 22 31 33 33 28 36 36 36 34 38 Protection 13 | . . . 20 12 11 8 14 17 18 11 24 15 Energy Gun 1 | . 4 . 2 . . . 3 . . 1 1 . Energy Cannon 1 | . . . . . . . 8 . . . 3 . Ballistic Gun 11 | . 14 16 11 21 22 21 3 11 . . . . Ballistic Cannon 3 | . 7 11 7 . . . . . 9 9 . . Slashing Weapon 1 | . . . . . . . 2 3 9 3 7 7 Naked Turns . | . . . . . . . . . . . . . Heaviest Build 131 | 11 44 46 73 81 81 81 111 102 100 100 131 127 Greatest Support 43 | 20 40 40 40 40 40 40 43 43 40 40 40 40 Greatest Overweight (x) 8 | . 1 2 3 2 2 2 6 4 2 8 3 3 Average Overweight (x) 1 | . . 1 1 1 2 1 2 2 2 5 2 3 Largest Inventory Capacity 36 | 6 14 14 18 24 24 24 30 30 30 30 36 36 Average Capacity 23 | 6 13 14 16 23 24 24 25 30 30 30 33 35 Most Carried 35 | 6 14 14 18 22 21 22 30 30 30 30 35 35 Average Carried 21 | 6 12 13 15 21 21 21 23 28 29 29 31 33 Final Capacity 36 | 6 14 14 18 24 24 24 30 30 30 30 36 22 Final Carried 35 | 6 14 14 18 21 21 21 30 30 30 30 35 22 Class Distribution -------------------- 54% | Hauler-Mutant 20% | Mutant 14% | Bothacker-Mutant 10% | Scavenger-Mutant Dominant Class ---------------- Mutant | -10/Materials Mutant | -10/Mines Scavenger-Mutant | -9/Materials Hauler-Mutant | -9/Mines Hauler-Mutant | -9/Exiles Hauler-Mutant | -8/Mines Hauler-Mutant | -8/Materials Hauler-Mutant | -8/Garrison Bothacker-Mutant | -8/Materials Bothacker-Mutant | -8/Garrison Bothacker-Mutant | -7/Factory Bothacker-Mutant | -7/Waste Resources | -11 -10 -10 -9 -9 -9 -8 -8 -8 -8 -8 -7 -7 ----------- Run | Scr Mat Min Mat Min Exi Min Mat Gar Mat Gar Fac Was Matter Collected 4469 | 200 200 404 942 430 . 279 943 548 53 228 242 . Remotely . | . . . . . . . . . . . . . Salvage Created 6452 | . 399 127 1493 492 . 412 2038 996 105 219 171 . Parts 394 | . 22 19 109 36 . 17 104 49 9 16 13 . Haulers Intercepted 8 | . 2 . 4 . . . 2 . . . . . Recyclers Shooed 14 | . 4 . 8 . . 2 . . . . . . Parts Field Recycled . | . . . . . . . . . . . . . Retrieved Matter . | . . . . . . . . . . . . . Parts Self-Destructed . | . . . . . . . . . . . . . Prevented . | . . . . . . . . . . . . . Kills | -11 -10 -10 -9 -9 -9 -8 -8 -8 -8 -8 -7 -7 ------- Run | Scr Mat Min Mat Min Exi Min Mat Gar Mat Gar Fac Was Combat Hostiles Destroyed 164 | . 4 13 35 18 . 8 46 23 2 11 4 . Melee 24 | . . . . . . . 6 11 2 1 4 . Guns 49 | . 2 1 14 7 . 6 10 8 . 1 . . Cannons 18 | . 1 1 6 . . . 9 1 . . . . AOE 71 | . 1 11 15 11 . 2 19 3 . 9 . . Classes Destroyed 15 | . 5 2 4 1 . 1 1 . . . 1 . Worker 8 | . 2 . 4 1 . . 1 . . . . . Builder 4 | . . 2 1 . . . 1 . . . . . Tunneler 1 | . . . 1 . . . . . . . . . Hauler 8 | . 2 . 4 . . . 2 . . . . . Recycler 10 | . 1 . 4 2 . 1 2 . . . . . Operator 2 | . . . 1 . . . 1 . . . . . Watcher 5 | . 1 . 2 . . . 2 . . . . . Swarmer 50 | . . 11 11 9 . . 10 4 . 4 1 . Grunt 76 | . 4 2 14 8 . 7 25 12 . 4 . . Brawler 3 | . . . . . . . 2 1 . . . . Duelist 4 | . . . 2 . . . 1 . . 1 . . Protector 1 | . . . . 1 . . . . . . . . Sentry 24 | . . . 8 . . . 6 6 2 1 1 . Hunter 4 | . . . . . . 1 2 . . 1 . . Programmer 2 | . . . . . . . . . . . 2 . Best Kill Streak 9 | . 2 3 9 6 . 3 6 3 2 9 1 . Combat Bots Only 9 | . 2 3 5 6 . 3 6 3 2 9 1 . Max Kills in Single Turn 4 | . 1 3 4 2 . 1 2 2 1 4 1 . Gunslinging 1 | . . . . 1 . . 1 . . . . . Exploded 4 | . 1 3 3 2 . 1 2 2 . 4 . . Melee 1 | . . . . . . . 1 1 1 1 1 . Uniques/NPCs Destroyed . | . . . . . . . . . . . . . Combat | -11 -10 -10 -9 -9 -9 -8 -8 -8 -8 -8 -7 -7 -------- Run | Scr Mat Min Mat Min Exi Min Mat Gar Mat Gar Fac Was Damage Taken 7991 | . 129 427 1003 321 . 714 2580 1350 77 314 985 91 Core 810 | . . 37 62 74 . 88 232 154 15 58 90 . Absorbed by Shields 37 | . . . . . . . . 37 . . . . Core Remaining (%) 61 | 100 . 85 . . . 44 . . . 16 . . Volleys Fired 358 | . 27 18 89 22 . 33 97 49 . 13 2 8 Largest 2 | . 2 2 2 2 . 2 2 2 . 2 1 1 Hottest 112 | . 60 55 75 46 . 46 112 64 . 89 56 30 Shots Fired 626 | . 50 28 162 36 . 62 169 90 . 19 2 8 Gun 394 | . 37 10 96 28 . 58 80 79 . 6 . . Cannon 154 | . 11 10 55 . . . 66 5 . 6 1 . Launcher 69 | . 2 8 11 8 . 4 23 6 . 7 . . Special 9 | . . . . . . . . . . . 1 8 Kinetic 415 | . 36 20 125 28 . 58 58 84 . 6 . . Thermal . | . . . . . . . . . . . . . Explosive 69 | . 2 8 11 8 . 4 23 6 . 7 . . Electromagnetic 133 | . 12 . 26 . . . 88 . . 6 1 . Robot Hit Streak 33 | . 7 3 11 5 . 33 14 12 . 3 4 4 Robot Miss Streak 3 | . 3 3 2 3 . 1 2 3 . 1 . 2 Penetration Max . | . . . . . . . . . . . . . Secondary Targets 7 | . . . 3 2 . 1 1 . . . . . Max Gunslinging Chain 1 | . . . 1 1 . 1 1 . . . . . Shots Hit Robots 492 | . 29 12 106 19 . 56 137 79 2 20 27 5 Core Hits 320 | . 15 18 73 30 . 24 97 34 2 21 6 . Critical Hits 7 | . 1 . 2 . . . 1 2 . . 1 . Critical Kills 3 | . 1 . 1 . . . 1 . . . . . Critical Parts Destroyed 4 | . . . 1 . . . . 2 . . 1 . Melee Attacks 145 | . . . 6 . . . 33 35 7 9 55 . Impact 6 | . . . 6 . . . . . . . . . Slashing 127 | . . . . . . . 33 35 7 1 51 . Piercing . | . . . . . . . . . . . . . Sneak Attacks 11 | . . . 2 . . . 2 1 . 5 1 . Combat Hostiles 6 | . . . . . . . . 1 . 5 . . Follow-up Attacks 3 | . . . . . . . . . . . 3 . Damage Inflicted 16798 | . 418 711 3642 1328 . 1000 5680 1962 81 1137 839 . Guns 4353 | . 307 107 1022 236 . 668 1114 844 . 55 . . Cannons 1985 | . 53 71 666 . . . 1073 64 . 58 . . Explosions 7623 | . 57 507 1753 994 . 232 2876 214 . 990 . . Melee 2548 | . . . 151 . . . 603 840 81 34 839 . Ramming 289 | . 1 26 50 98 . 100 14 . . . . . Kinetic 4413 | . 203 178 1411 236 . 668 751 908 . 58 . . Thermal 298 | . . . . . . . 240 . . 58 . . Explosive 7284 | . 16 507 1753 994 . 232 2636 214 . 932 . . Electromagnetic 1966 | . 198 . 277 . . . 1436 . . 55 . . Impact 151 | . . . 151 . . . . . . . . . Slashing 2397 | . . . . . . . 603 840 81 34 839 . Piercing . | . . . . . . . . . . . . . Highest Corruption 5 | . . . 3 3 3 3 5 5 5 5 3 3 Average Corruption 3 | . . . 2 3 3 3 4 5 5 5 2 3 Corruption Purged . | . . . . . . . . . . . . . Effects 184 | . . . 30 29 5 20 41 32 6 8 11 2 Message Errors 40 | . . . 4 10 2 6 6 6 1 3 2 . Matter Fused 48 | . . . 9 8 1 3 8 9 3 3 3 1 Heat Flow Errors 22 | . . . 4 2 2 1 6 5 . 1 1 . Energy Discharges 23 | . . . 2 5 . 3 5 6 . . 1 1 Data Loss (minor) 20 | . . . 4 3 . 5 5 . . . 3 . Data Loss (major) 3 | . . . . . . . . 2 1 . . . Misfires 1 | . . . . . . . 1 . . . . . Targeting Errors 23 | . . . 6 1 . 2 9 2 1 1 1 . Weapon Failures 4 | . . . 1 . . . 1 2 . . . . Overload Shots . | . . . . . . . . . . . . . Overflow Damage 491 | . . 3 205 5 . . 132 26 . 73 47 . Projectiles 45 | . . . 14 . . . 31 . . . . . Explosions 314 | . . 3 140 . . . 84 14 . 73 . . Melee 132 | . . . 51 5 . . 17 12 . . 47 . Knockbacks 5 | . . 1 3 1 . . . . . . . . Impact 2 | . . . 1 1 . . . . . . . . Kinetic 3 | . . 1 2 . . . . . . . . . Secondary . | . . . . . . . . . . . . . Self-Inflicted Damage 205 | . . 119 . . . . 70 . . 16 . . Shots 8 | . . 4 . . . . 3 . . 1 . . Rammed 30 | . . 2 9 7 . 10 2 . . . . . Targets Rammed 36 | . 2 4 9 8 . 11 2 . . . . . Kicked . | . . . . . . . . . . . . . Crushed 6 | . 2 2 . 1 . 1 . . . . . . Highest Temperature 481 | . 39 35 300 222 130 148 481 276 . 274 224 26 Average Temperature 77 | . 18 20 83 86 65 18 95 63 . 86 72 14 Received Heat Transfer 2547 | . 72 75 408 75 . 270 729 627 27 72 192 . Effects 9 | . . . 2 . . . 6 . . . 1 . Shutdowns 1 | . . . . . . . 1 . . . . . Energy Bleed 4 | . . . 2 . . . 1 . . . 1 . Interference 3 | . . . . . . . 3 . . . . . Damage (major) 1 | . . . . . . . 1 . . . . . Siege Activations . | . . . . . . . . . . . . . Robots Corrupted 2 | . . . . . . . 2 . . . . . Combat Hostiles 2 | . . . . . . . 2 . . . . . Parts Fried 14 | . . . 5 . . . 9 . . . . . Impact Corruptions 4 | . . . 3 1 . . . . . . . . Robots Melted . | . . . . . . . . . . . . . Combat Hostiles . | . . . . . . . . . . . . . Parts Melted . | . . . . . . . . . . . . . Heat Transferred 400 | . . . . . . . 300 . . 100 . . Parts Sabotaged . | . . . . . . . . . . . . . Parts Stolen . | . . . . . . . . . . . . . Parts Stripped . | . . . . . . . . . . . . . Power Chain Reactions 7 | . 1 . . . . . 5 . . 1 . . Missiles Intercepted . | . . . . . . . . . . . . . Alert | -11 -10 -10 -9 -9 -9 -8 -8 -8 -8 -8 -7 -7 ------- Run | Scr Mat Min Mat Min Exi Min Mat Gar Mat Gar Fac Was Peak Influence 1203 | . 159 297 672 354 . 197 867 1203 665 802 461 449 Average Influence 336 | . 83 139 329 203 . 53 371 916 602 601 340 187 Maximum Alert Level 4 | . . 1 2 1 . . 3 4 2 3 2 2 Low Security (%) 42 | 100 100 85 11 49 . 100 30 . . . 13 65 Level 1 24 | . . 14 60 50 . . 23 . . . 43 24 Level 2 20 | . . . 28 . . . 36 22 100 52 43 10 Level 3 10 | . . . . . . . 9 55 . 47 . . Level 4 2 | . . . . . . . . 21 . . . . Level 5 . | . . . . . . . . . . . . . High Security . | . . . . . . . . . . . . . Max Security . | . . . . . . . . . . . . . Squads Dispatched 22 | . 1 1 4 1 . . 12 . . . 3 . Investigation 10 | . 1 1 2 . . . 5 . . . 1 . Extermination 1 | . . . . . . . . . . . 1 . Reinforcement 7 | . . . 2 . . . 4 . . . 1 . Assault 2 | . . . . 1 . . 1 . . . . . Garrison 2 | . . . . . . . 2 . . . . . Intercept . | . . . . . . . . . . . . . Construction Impeded . | . . . . . . . . . . . . . Haulers Reinforced 1 | . . . . . . . . . . . 1 . Stealth | -11 -10 -10 -9 -9 -9 -8 -8 -8 -8 -8 -7 -7 --------- Run | Scr Mat Min Mat Min Exi Min Mat Gar Mat Gar Fac Was Distress Signals 7 | . . . 2 . . . 2 . 1 . 2 . Communications Jammed . | . . . . . . . . . . . . . Distress Signals . | . . . . . . . . . . . . . Times Spotted 233 | . 13 15 41 19 . 10 72 24 3 16 15 5 Peak Tracking Total 7 | . 2 3 5 5 . 4 6 5 2 7 3 3 Tactical Retreats 19 | . . . 1 . . 2 10 2 . 2 2 . Traps | -11 -10 -10 -9 -9 -9 -8 -8 -8 -8 -8 -7 -7 ------- Run | Scr Mat Min Mat Min Exi Min Mat Gar Mat Gar Fac Was Traps Triggered 23 | . 1 . 7 . . . 3 6 . 4 2 . Indirectly . | . . . . . . . . . . . . . Trap Hack Attempts . | . . . . . . . . . . . . . Triggered . | . . . . . . . . . . . . . Disarmed . | . . . . . . . . . . . . . Reprogrammed . | . . . . . . . . . . . . . Reused . | . . . . . . . . . . . . . Traps Extracted . | . . . . . . . . . . . . . Installed 1 | . . . . . . . 1 . . . . . Triggered 1 | . . . . . . . 1 . . . . . Machines | -11 -10 -10 -9 -9 -9 -8 -8 -8 -8 -8 -7 -7 ---------- Run | Scr Mat Min Mat Min Exi Min Mat Gar Mat Gar Fac Was Machines Disabled 34 | . 4 1 8 . . 3 13 3 . 1 1 . Max in Single Turn 4 | . 4 1 2 . . 2 1 1 . 1 1 . Garrison Relay 3 | . . . . . . . . 2 . 1 . . Machines Sabotaged . | . . . . . . . . . . . . . Garrisons Compromised . | . . . . . . . . . . . . . Overloaded Fab Kills . | . . . . . . . . . . . . . Fab Network Shutdowns . | . . . . . . . . . . . . . Hacking | -11 -10 -10 -9 -9 -9 -8 -8 -8 -8 -8 -7 -7 --------- Run | Scr Mat Min Mat Min Exi Min Mat Gar Mat Gar Fac Was Machines Accessed 25 | . 4 1 5 . 1 . 10 . 1 . 3 . Terminals 12 | . 3 . 3 . . . 5 . . . 1 . Fabricators 1 | . . . . . . . . . . . 1 . Repair Stations 1 | . . . . . . . 1 . . . . . Recycling Units 6 | . 1 . 2 . . . 2 . . . 1 . Scanalyzers 1 | . . . . . . . 1 . . . . . Garrison Access 2 | . . . . . . . 1 . 1 . . . Total Hacks 62 | . 10 1 12 . 1 . 30 . 1 . 7 . Successful 37 | . 5 1 8 . 1 . 18 . 1 . 3 . Failed 25 | . 5 . 4 . . . 12 . . . 4 . Catastrophic 2 | . . . . . . . 2 . . . . . Database Lockouts . | . . . . . . . . . . . . . Manual 34 | . 9 . 7 . . . 16 . . . 2 . Terminals 32 | . 8 . 6 . . . 16 . . . 2 . Fabricators 3 | . . . . . . . . . . . 3 . Repair Stations 5 | . . . . . . . 5 . . . . . Recycling Units 15 | . 2 . 6 . . . 5 . . . 2 . Scanalyzers 3 | . . . . . . . 3 . . . . . Garrison Access 2 | . . . . . . . 1 . 1 . . . Terminal Hacks 17 | . 4 1 4 . 1 . 6 . . . 1 . Record 1 | . . . . . 1 . . . . . . . Part Schematic 2 | . 2 . . . . . . . . . . . Prototype ID Bank 3 | . 1 . 1 . . . 1 . . . . . Open Door 1 | . . 1 . . . . . . . . . . Branch Access Points 2 | . . . 1 . . . . . . . 1 . Unreport Threat 2 | . . . 1 . . . 1 . . . . . Hauler Manifests 3 | . 1 . 1 . . . 1 . . . . . Registered Prototypes 1 | . . . . . . . 1 . . . . . Zone Layout 2 | . . . . . . . 2 . . . . . Fabricator Hacks 2 | . . . . . . . . . . . 2 . Load Schematic 1 | . . . . . . . . . . . 1 . Build 1 | . . . . . . . . . . . 1 . Repair Station Hacks 5 | . . . . . . . 5 . . . . . Scan Component 3 | . . . . . . . 3 . . . . . Repair 2 | . . . . . . . 2 . . . . . Recycling Unit Hacks 4 | . . . 2 . . . 2 . . . . . Report Inventory 2 | . . . 1 . . . 1 . . . . . Retrieve Matter 1 | . . . . . . . 1 . . . . . Retrieve Components 1 | . . . 1 . . . . . . . . . Scanalyzer 2 | . . . . . . . 2 . . . . . Insert Component 1 | . . . . . . . 1 . . . . . Analyze 1 | . . . . . . . 1 . . . . . Garrison Access Hacks 2 | . . . . . . . 1 . 1 . . . Unlock Access 2 | . . . . . . . 1 . 1 . . . Unauthorized Hacks 13 | . 2 . 4 . . . 7 . . . . . Terminals . | . . . . . . . . . . . . . Fabricators . | . . . . . . . . . . . . . Repair Stations . | . . . . . . . . . . . . . Recycling Units 5 | . 1 . 2 . . . 2 . . . . . Tunnel 5 | . 1 . 2 . . . 2 . . . . . Scanalyzers . | . . . . . . . . . . . . . Garrison Access . | . . . . . . . . . . . . . Data Cores Recovered . | . . . . . . . . . . . . . Used . | . . . . . . . . . . . . . Hacking Detections 12 | . 3 . . . . . 7 . . . 2 . Full Trace Events 2 | . . . . . . . 1 . . . 1 . Feedback Events 1 | . . . . . . . 1 . . . . . Corruption 1 | . . . . . . . 1 . . . . . Feedback Blocked . | . . . . . . . . . . . . . Robot Schematics Acquired . | . . . . . . . . . . . . . Robots Built . | . . . . . . . . . . . . . Matter . | . . . . . . . . . . . . . Time . | . . . . . . . . . . . . . Total Robot Build Rating . | . . . . . . . . . . . . . Part Schematics Acquired 2 | . 1 . . . . . 1 . . . . . Parts Built 1 | . . . . . . . . . . . 1 . Matter 285 | . . . . . . . . . . . 285 . Time 76 | . . . . . . . . . . . 76 . Total Part Build Rating 5 | . . . . . . . . . . . 5 . Parts Repaired 2 | . . . . . . . 2 . . . . . Time 106 | . . . . . . . 106 . . . . . Parts Recycled . | . . . . . . . . . . . . . Recycled Matter . | . . . . . . . . . . . . . Retrieved Matter 124 | . . . . . . . 124 . . . . . Retrieved Components 10 | . . . 10 . . . . . . . . . Parts Scanalyzed 1 | . . . . . . . 1 . . . . . Part Schematics Acquired 1 | . . . . . . . 1 . . . . . Parts Damaged . | . . . . . . . . . . . . . Bothacking | -11 -10 -10 -9 -9 -9 -8 -8 -8 -8 -8 -7 -7 ------------ Run | Scr Mat Min Mat Min Exi Min Mat Gar Mat Gar Fac Was Used RIF Installer 2 | . . . . . . . . 1 . 1 . . Structural Interface 1 | . . . . . . . . . . 1 . . Robots Hacked 10 | . . . . . . . . . . 2 3 5 Non-combat 1 | . . . . . . . . . . . 1 . Combat 9 | . . . . . . . . . . 2 2 5 Robot Hacks Applied 11 | . . . . . . . . . . 3 3 5 find_chute 1 | . . . . . . . . . . . 1 . ignore_targets 5 | . . . . . . . . . . . . 5 spike_heat 1 | . . . . . . . . . . 1 . . overwrite_iff 1 | . . . . . . . . . . 1 . . formatsys_high 3 | . . . . . . . . . . 1 2 . Relay Couplers Released 12 | . . . . . . . . 9 . 3 . . Machine Destruction 12 | . . . . . . . . 9 . 3 . . Attached 3 | . . . . . . . . . . 2 . 1 Robots Rewired . | . . . . . . . . . . . . . Allies Hacked 1 | . . . . . . . . . . . 1 . Hacks Repelled . | . . . . . . . . . . . . . Allies | -11 -10 -10 -9 -9 -9 -8 -8 -8 -8 -8 -7 -7 -------- Run | Scr Mat Min Mat Min Exi Min Mat Gar Mat Gar Fac Was Total Allies 5 | . . . . 1 . . . . . 2 2 . Largest Group 2 | . . . . 1 1 1 . . . 2 2 . Highest-Rated Group 32 | . . . . 31 31 31 . . . 32 32 . Highest-Rated Ally 31 | . . . . 31 31 31 . . . 16 16 . Total Orders . | . . . . . . . . . . . . . Ally Attacks 28 | . . . . 1 . 6 . . . 17 4 . Total Damage 411 | . . . . 20 . 127 . . . 194 70 . Kills 5 | . . . . 1 . 1 . . . 2 1 . Allies Corrupted . | . . . . . . . . . . . . . Allies Melted . | . . . . . . . . . . . . . Intel | -11 -10 -10 -9 -9 -9 -8 -8 -8 -8 -8 -7 -7 ------- Run | Scr Mat Min Mat Min Exi Min Mat Gar Mat Gar Fac Was Robot Analysis Total . | . . . . . . . . . . . . . Derelict Logs Recovered 3 | . . 1 . 2 . . . . . . . . Drone Launches . | . . . . . . . . . . . . . Drone Recoveries . | . . . . . . . . . . . . . Exploration | -11 -10 -10 -9 -9 -9 -8 -8 -8 -8 -8 -7 -7 ------------- Run | Scr Mat Min Mat Min Exi Min Mat Gar Mat Gar Fac Was Turns Passed 11484 | 3 722 953 1665 1449 272 1429 2040 1310 170 433 923 115 Spaces Moved 4941 | 3 338 485 756 683 137 667 761 490 74 181 322 44 Core . | . . . . . . . . . . . . . Treads 4655 | . 338 485 648 683 137 667 678 490 74 89 322 44 Legs 3 | 3 . . . . . . . . . . . . Wheels 283 | . . . 108 . . . 83 . . 92 . . Hover . | . . . . . . . . . . . . . Flight . | . . . . . . . . . . . . . Fastest Speed 110 | 120 160 180 110 180 200 180 140 200 200 160 200 225 Average Speed 190 | 120 178 180 170 197 200 194 191 201 200 184 213 225 Slowest Speed 240 | 120 180 200 220 200 200 200 240 240 200 200 225 225 Overloaded Moves . | . . . . . . . . . . . . . Propulsion Burnouts . | . . . . . . . . . . . . . Robots Hopped . | . . . . . . . . . . . . . Cave-ins Triggered 1 | . . . . . . . 1 . . . . . Exploration Rate (%) 56 | 2 58 99 74 98 49 98 85 61 15 38 13 49 Regions Visited 12 Branch Regions 4 Pre-discovered Areas 6 | . 1 . 2 . 1 . 2 . . . . . Known Exits Taken 3 | . . . 1 . . . 1 . 1 . . . Unknown Exits Taken 6 | 1 1 1 . 1 1 1 . . . . . . Scrap Searched 6 | . . 4 . 1 . 1 . . . . . . Spaces Dug 108 | . . 35 13 19 . . 19 1 4 1 16 . Terrain Destroyed 485 | . 8 54 99 97 . 12 142 23 4 30 16 . Melee 41 | . . . 1 . . . 19 1 4 . 16 . Projectile . | . . . . . . . . . . . . . AOE 444 | . 8 54 98 97 . 12 123 22 . 30 . . Actions | -11 -10 -10 -9 -9 -9 -8 -8 -8 -8 -8 -7 -7 --------- Run | Scr Mat Min Mat Min Exi Min Mat Gar Mat Gar Fac Was Total 6186 | 2 406 535 951 734 136 723 1133 697 87 253 474 55 Wait 283 | . 8 3 12 4 . 7 120 66 . 8 54 1 Move 4930 | 2 337 484 755 682 136 666 760 489 74 179 322 44 Hop . | . . . . . . . . . . . . . Pick Up 119 | . 17 7 16 6 . 2 41 16 2 2 10 . Fast Attach 28 | . 2 1 16 . . . 6 1 . . 2 . Attach 47 | . 1 3 3 1 . 2 15 11 . 1 9 1 Detach 8 | . . . 1 . . . 3 1 . . 3 . Swap 111 | . 4 8 24 9 . 2 30 11 1 7 14 1 Drop 80 | . 8 7 20 2 . . 24 10 3 1 5 . Fire 358 | . 27 18 89 22 . 33 97 49 . 13 2 8 Melee 141 | . . . 6 . . . 33 35 7 9 51 . Ram . | . . . . . . . . . . . . . Kick . | . . . . . . . . . . . . . Crush 36 | . 2 4 9 8 . 11 2 . . . . . Escape Stasis 41 | . . . . . . . 1 8 . 32 . . Rewire 3 | . . . . . . . . . . 1 2 . Trap 1 | . . . . . . . 1 . . . . . Miscellaneous . | . . . . . . . . . . . . . Route ------- -11/Scrapyard -10/Materials (discovered 2 exits: *Mat / *Min) -10/Mines (discovered 2 exits: *Mat x2) -9/Materials (discovered 3 exits: *Mat x2 / *Min) -9/Mines (discovered 3 exits: *Mat x2 / *Exi) -9/Exiles -8/Mines (discovered 2 exits: *Mat x2) -8/Materials (discovered 5 exits: *Fac x3 / *Sto / Gar) -8/Garrison (discovered 3 exits: *Mat x3) -8/Materials (discovered 2 exits: *Sto / Gar) -8/Garrison -7/Factory (discovered 2 exits: Low x2) -7/Waste History --------- Turn | Location | Event 1 | -11/Scrapyard | Discovered new exit (range 3) 4 | -11/Scrapyard | Entered Materials 252 | -10/Materials | Discovered new exit (range 15) 302 | -10/Materials | Build established: Mutant 380 | -10/Materials | Discovered new exit (range 11) 726 | -10/Materials | Entered Mines 1217 | -10/Mines | Discovered new exit (range 15) 1465 | -10/Mines | Learned Materials stockpile data 1492 | -10/Mines | Discovered new exit (range 15) 1605 | -10/Mines | Met a Derelict shopkeep closing up shop 1679 | -10/Mines | Entered Materials 1679 | -9/Materials | Evolved 2 slots: Utility x2 1912 | -9/Materials | Discovered new exit (range 16) 2422 | -9/Materials | Build established: Scavenger-Mutant 2563 | -9/Materials | Discovered new exit (range 8) 2721 | -9/Materials | Discovered new exit (range 3) 2984 | -9/Materials | Identified exit to Mines 3344 | -9/Materials | Entered Mines 3360 | -9/Mines | A weapon hastily lodged in a ceiling crevice suddenly fell to the ground 3411 | -9/Mines | Met a Derelict bent on vengeance 3486 | -9/Mines | Found a hidden stash of uninstalled traps 3511 | -9/Mines | Discovered new exit (range 8) 3726 | -9/Mines | Found a damaged Exp. Sensor Array with a note attached 3734 | -9/Mines | Found Prototype Device 3779 | -9/Mines | Build established: Hauler-Mutant 3853 | -9/Mines | Learned 2 Materials zone layouts 3877 | -9/Mines | Discovered new exit (range 9) 4021 | -9/Mines | Deemed a non-threat by the Exiles lab entrance 4396 | -9/Mines | Discovered new exit (range 5) 4534 | -9/Mines | Met a Derelict testing a Signal Generator 4793 | -9/Mines | Entered Exiles 4793 | -9/Exiles | Accompanied by 1 ally 4841 | -9/Exiles | Met 8R-AWN 4871 | -9/Exiles | Met EX-HEX 4959 | -9/Exiles | Met EX-DEC 4963 | -9/Exiles | Learned location of Zion (-7) 5039 | -9/Exiles | Discovered new exit (range 14) 5065 | -9/Exiles | Entered Mines 5065 | -8/Mines | Accompanied by 1 ally 5551 | -8/Mines | Discovered new exit (range 13) 5966 | -8/Mines | Discovered new exit (range 9) 6173 | -8/Mines | Core integrity fell below 50% 6494 | -8/Mines | Entered Materials 6494 | -8/Materials | Evolved 2 slots: Utility x2 6494 | -8/Materials | Identified Exp. Sensor Array 6495 | -8/Materials | Identified exit to Storage 6623 | -8/Materials | Lost 3 parts (1n2w) 7175 | -8/Materials | Crushed by falling debris 7204 | -8/Materials | Discovered new exit (range 15) 7691 | -8/Materials | Discovered new exit (range 16) 7858 | -8/Materials | Repaired Exp. Sensor Array 7907 | -8/Materials | Repaired Hcp. Storage Unit 8094 | -8/Materials | First assault squad dispatched 8307 | -8/Materials | Discovered new exit (range 5) 8348 | -8/Materials | Garrison activated, responded to threat 8451 | -8/Materials | Lost 6 parts (1n4u1w) 8534 | -8/Materials | Identified exit to Garrison 8534 | -8/Materials | Entered Garrison 8582 | -8/Garrison | Triggered checkpoint 8652 | -8/Garrison | Triggered checkpoint 8777 | -8/Garrison | Triggered checkpoint 8800 | -8/Garrison | Core integrity fell below 50% 8947 | -8/Garrison | Lost 6 parts (1p2n3u) 8969 | -8/Garrison | Discovered new exit (range 14) 9158 | -8/Garrison | Triggered checkpoint 9230 | -8/Garrison | Discovered new exit (range 9) 9288 | -8/Garrison | Triggered checkpoint 9378 | -8/Garrison | Discovered new exit (range 12) 9412 | -8/Garrison | Installed Relay Interface Framework 9454 | -8/Garrison | Triggered checkpoint 9563 | -8/Garrison | Garrison Relay disabled 9744 | -8/Garrison | Triggered checkpoint 9777 | -8/Garrison | Garrison Relay disabled 9844 | -8/Garrison | Entered Materials 9970 | -8/Materials | Discovered exit to Storage (range 3) 10014 | -8/Materials | Identified exit to Garrison 10014 | -8/Materials | Entered Garrison 10024 | -8/Garrison | Expanded RIF knowledge: Structural Interface 10070 | -8/Garrison | Build established: Bothacker-Mutant 10216 | -8/Garrison | Triggered checkpoint 10258 | -8/Garrison | Triggered checkpoint 10262 | -8/Garrison | Destroyed 9 combat bots 10316 | -8/Garrison | Discovered new exit (range 10) 10360 | -8/Garrison | Triggered checkpoint 10370 | -8/Garrison | Core integrity fell below 20% 10401 | -8/Garrison | Garrison Relay disabled 10447 | -8/Garrison | Entered Factory 10447 | -7/Factory | Evolved 2 slots: Utility x2 10599 | -7/Factory | Fabricated Exp. Sensor Array (x1) 10788 | -7/Factory | Lost 3 parts (1p1n1u) 11239 | -7/Factory | Identified exit to Lower Caves 11370 | -7/Factory | Sucked down chute 11370 | -7/Factory | Entered Waste 11380 | -7/Waste | Spotted C-40 Crusher 11423 | -7/Waste | Spotted C-40 Crusher 11429 | -7/Waste | Spotted C-40 Crusher 11431 | -7/Waste | Spotted C-40 Crusher 11441 | -7/Waste | Spotted C-40 Crusher 11461 | -7/Waste | Spotted C-40 Crusher 11482 | -7/Waste | Crushed by Compactor (1 part destroyed, 1 dropped) 11485 | -7/Waste | Crushed by Compactor (1 part destroyed, 1 dropped) 11485 | -7/Waste | Self-destructed Last Messages --------------- 11409_ System corrupted: Matter fused (-10). 11425_ Jacked C-40 Crusher... >>ignore_targets Processing routines blocked. 11437_ Jacked C-40 Crusher... >>ignore_targets Processing routines blocked. 11450_ Jacked C-40 Crusher... >>ignore_targets Processing routines blocked. 11475_ Jacked C-40 Crusher... >>ignore_targets Processing routines blocked. 11482_ Lrg. Storage Unit crushed. 11482_ Arm. Treads crushed. 11482_ Critical hit. 11483_ Jacked C-40 Crusher... 11485_ Relay Coupler [NC] crushed. 11485_ Hcp. Storage Unit crushed. 11485_ Hrd. Medium Armor Plating crushed. Map ----- +----------------------------------------------------+ | ?????????????????????????????????????????????????? | | ?????????????????????????????????????????????????? | | ?????????????????????????????????????????????????? | | ?????????????????????????????????????????????????? | | ?????????????????????????????????????????????????? | | ?????????????????????????????????????????????????? | | ?????????????????????????????????????????????????? | | ??????????????????????? ?????????????????????? | | ??????????????????????? ???????????????????? | | ??????????????????????? ????????????????????? | | ??????????????????????? ????????????????????? | | ??????????????????????? ????????????????????? | | ????????????###???????? ????????????????????? | | ???????? #??????# ] #????????????????????? | | #??????# * #??????# #????????????????????? | | #??????# #??????# #????????????????????? | | #??????# #??????# #????????????????????? | | ######## #??????# #????????????????????? | | #??????# #????????????????????? | | ?? #??????# #????????????????????? | | ???? #??????# #????????????????????? | | ?????? #??????# #????????????????????? | | #??????# #??????# #????????????????????? | | #??????# #??????# ]CC#????????????????????? | | #??????# #??????#]=CC#????????????????????? | | #??????# #??????#!@!=#????????????????????? | | ######## ########CC! ######???????????????? | | CCCC ??????????? | | CC ?????????? | | CC CC ?????????? | | CC CC ????????? | | ######## ######## ######## ?????????? | | #??????# #??????# #????????? ?????????? | | #??????# #??????# #????????????????????? | | #??????# #??????# #????????????????????? | | #??????# #??????# #????????????????????? | | ] ?????? ?????? #????????????????????? | | ???? ????? #????????????????????? | | ?? ???? #????????????????????? | | ???? #????????????????????? | | ######## ###???## #????????????????????? | | #??????# #??????? ?????????????????????? | | #??????# #???????? ???????????????????????? | | ???????# ?????????????????????????????????? | | ???????????? ?????????????????????????????????? | | ?????????????????????????????????????????????????? | | ?????????????????????????????????????????????????? | | ?????????????????????????????????????????????????? | | ?????????????????????????????????????????????????? | | ?????????????????????????????????????????????????? | +----------------------------------------------------+ Best States ------------- Heat Dissipation 34 Coolant Potential 50 Energy Generation 18 Energy Capacity 280 Matter Stores 300 Matter Capacity 300 Sight Range 16 Terrain Scan Density 10 Armor Coverage 750 Resistance: EM 15 Core Shielding 20 Evasion (%) 40 Recoil Reduction 2 Item Schematics ----------------- Hcp. Storage Unit | -10/Materials | Hacked Exp. Sensor Array | -8/Materials | Scanalyzed Robot Schematics ------------------ None Fabricated ------------ Exp. Sensor Array | x1 | -7/Factory Alien Tech Used ----------------- None Achievements -------------- None Challenges ------------ None Game ------ Seed ProcessingWaveAnalyzer Manual? 0 Play Time 01:06:38 Cumulative 211.3 hours Start 2019.11.21 @ 01:43:17 End 2019.11.21 @ 02:49:19 Sessions 1 Manual Loads 0 Difficulty Rogue Special Mode None Game No. 182 Rogue 172 Adventurer 10 Explorer 0 Win Type - Total 4 Types 3/0/0/1/0/0/0 Lore% 66 Gallery% 82 Achievement% 65 Wizard Run 0 Options --------- ASCII 0 Keyboard 1 Movement Numpad Keybinds 0 Fullscreen 2 Font 18/SmallcapsGlow Map View 76x50 Tactical HUD 1 Map Filters NONE Filters NONE Steam 1 RUN: f370630b-0d41-4259-b5a9-8edc6a5433a0